fUSD/lending_fUSD_20240523
["ID","MTS","AMOUNT","RATE_DAILY","PERIOD"]
[327778585,1716474870998,1387.02,0.00021999,2]
[327778586,1716474871065,500.0,0.00023356,7]
[327778587,1716474871142,500.0,0.00023082,6]
[327778588,1716474871236,1387.02,0.00022273,3]
[327778589,1716474871474,500.0,0.00023356,7]
[327778590,1716474871531,1387.02,0.00022547,4]
[327778591,1716474871806,1387.02,0.00022821,5]
[327778592,1716474872262,500.0,0.00022073,2]
[327778593,1716474872425,1387.02,0.00023095,6]
[327778594,1716474872567,500.0,0.00022347,3]
[327778595,1716474872725,1387.02,0.00023369,7]
[327778596,1716474873362,500.0,0.00022621,4]
[327778597,1716474873781,500.0,0.00022897,2]
[327778598,1716474873838,1095.93,0.00021986,2]
[327778599,1716474874103,1095.93,0.0002226,3]
[327778600,1716474874151,500.0,0.00022895,5]
[327778601,1716474874383,529.3596133,0.00021986,2]
[327778602,1716474874458,1095.93,0.00022534,4]
[327778603,1716474874518,500.0,0.00023169,6]
[327778604,1716474874808,1095.93,0.00022808,5]
[327778605,1716474874858,500.0,0.00023443,7]
[327778606,1716474875070,1095.93,0.00023082,6]
[327778607,1716474875377,1095.93,0.00023356,7]
[327778608,1716474875955,505.78924468,0.00022073,2]
[327778609,1716474876278,506.43384864,0.00022897,2]
[327778610,1716474876405,2005.18444528,0.000234,2]
[327778611,1716474876837,5512.46730855,0.00023094,2]
[327778612,1716474879107,670.26,0.00022073,2]
[327778613,1716474879154,500.0,0.00022073,2]
[327778614,1716474879206,667.19,0.00022897,2]
[327778615,1716474879391,670.26,0.00022347,3]
[327778616,1716474879440,500.0,0.00022347,3]
[327778617,1716474879492,667.19,0.00023171,3]
[327778618,1716474879659,670.26,0.00022621,4]
[327778619,1716474879713,500.0,0.00022621,4]
[327778620,1716474879768,667.19,0.00023445,4]
[327778621,1716474879938,670.26,0.00022895,5]
[327778622,1716474880001,500.0,0.00022895,5]
[327778623,1716474880224,670.26,0.00023169,6]
[327778624,1716474880280,500.0,0.00023169,6]
[327778625,1716474880512,500.0,0.00023443,7]
[327778626,1716474880563,670.26,0.00023443,7]
[327778627,1716474880825,2444.78,0.00021999,2]
[327778628,1716474881178,2444.78,0.00022273,3]
[327778629,1716474881490,500.0,0.00021917,2]
[327778630,1716474881631,500.0,0.00022073,2]
[327778631,1716474881809,500.0,0.00022191,3]
[327778632,1716474881857,2444.78,0.00022547,4]
[327778633,1716474881912,543.05566771,0.00022347,3]
[327778634,1716474883589,2444.78,0.00022821,5]
[327778635,1716474883677,500.0,0.00022465,4]
[327778636,1716474883826,500.0,0.00022739,5]
[327778637,1716474883897,2444.78,0.00023095,6]
[327778638,1716474884056,2444.78,0.00023369,7]
[327778639,1716474884115,500.0,0.00023013,6]
[327778640,1716474884182,500.0,0.00023287,7]
[327778641,1716474884254,500.0,0.00022073,2]
[327778642,1716474884407,500.0,0.00022347,3]
[327778643,1716474884666,684.21,0.00022073,2]
[327778644,1716474884723,500.0,0.00022621,4]
[327778645,1716474884938,500.0,0.00022895,5]
[327778646,1716474884992,684.21,0.00022347,3]
[327778647,1716474885224,684.21,0.00022621,4]
[327778648,1716474885281,500.0,0.00023169,6]
[327778649,1716474885522,500.0,0.00023443,7]
[327778650,1716474885773,684.21,0.00022895,5]
[327778651,1716474886378,684.21,0.00023169,6]
[327778652,1716474886608,511.85837513,0.00022073,2]
[327778653,1716474886874,500.0,0.00022897,2]
[327778654,1716474887003,684.21,0.00023443,7]
[327778655,1716474887141,500.0,0.00023171,3]
[327778656,1716474887417,500.0,0.00023445,4]
[327778657,1716474889203,509.98581723,0.00022073,2]
[327778658,1716474889680,500.0,0.00022073,2]
[327778659,1716474889747,507.40759555,0.00022347,3]
[327778660,1716474889797,500.0,0.00021986,2]
[327778661,1716474889852,155.23,0.00021918,2]
[327778662,1716474890105,500.0,0.00022897,2]
[327778663,1716474890364,500.0,0.00021917,2]
[327778664,1716474890414,500.0,0.00023171,3]
[327778665,1716474890626,500.0,0.00023445,4]
[327778666,1716474890914,531.04,0.00022073,2]
[327778667,1716474890965,500.0,0.00022191,3]
[327778668,1716474891011,500.0,0.00022074,2]
[327778669,1716474891206,531.04,0.00022347,3]
[327778670,1716474891253,500.0,0.00022465,4]
[327778671,1716474891301,500.0,0.00022348,3]
[327778672,1716474891499,531.04,0.00022621,4]
[327778673,1716474891568,500.0,0.00022739,5]
[327778674,1716474891618,500.0,0.00022622,4]
[327778675,1716474891774,500.0,0.00023013,6]
[327778676,1716474891827,531.04,0.00022895,5]
[327778677,1716474891914,500.0,0.00022896,5]
[327778678,1716474892045,323.84047485,0.00023287,7]
[327778679,1716474892098,531.04,0.00023169,6]
[327778680,1716474892143,500.0,0.00022897,2]
[327778681,1716474892198,511.01713408,0.00021986,2]
[327778682,1716474892247,500.0,0.0002317,6]
[327778683,1716474892389,531.04,0.00023443,7]
[327778684,1716474892438,500.0,0.00023171,3]
[327778685,1716474892515,2005.18444528,0.000234,2]
[327778686,1716474892576,500.0,0.00023444,7]
[327778687,1716474892938,1511.44,0.00021999,2]
[327778688,1716474893082,500.0,0.00023445,4]
[327778689,1716474893537,500.0,0.00022897,2]
[327778690,1716474893595,500.0,0.00022073,2]
[327778691,1716474893644,1511.44,0.00022273,3]
[327778692,1716474893735,500.0,0.00023171,3]
[327778693,1716474893827,500.0,0.00022347,3]
[327778694,1716474894090,1511.44,0.00022547,4]
[327778695,1716474894142,500.0,0.00023445,4]
[327778696,1716474894191,182.9620831,0.00022621,4]
[327778697,1716474894396,1511.44,0.00022821,5]
[327778698,1716474894711,1511.44,0.00023095,6]
[327778699,1716474894958,511.51318945,0.00021986,2]
[327778700,1716474895222,1511.44,0.00023369,7]
[327778701,1716474895375,500.0,0.00022073,2]
[327778702,1716474895980,500.0,0.00022347,3]
[327778703,1716474896421,1514.09,0.00022499,2]
[327778704,1716474896580,500.0,0.00022621,4]
[327778705,1716474896690,1514.09,0.00022773,3]
[327778706,1716474896862,500.0,0.00022895,5]
[327778707,1716474896977,1514.09,0.00023047,4]
[327778708,1716474897118,500.0,0.00021986,2]
[327778709,1716474897168,500.0,0.00023169,6]
[327778710,1716474897264,1514.09,0.00023321,5]
[327778711,1716474897414,385.66715286,0.00023443,7]
[327778712,1716474897462,511.95477235,0.0002226,3]
[327778713,1716474898618,500.0,0.00022073,2]
[327778714,1716474898900,542.43819752,0.00022347,3]
[327778715,1716474899774,528.04,0.00022073,2]
[327778716,1716474899918,500.0,0.00022897,2]
[327778717,1716474899967,500.0,0.00021986,2]
[327778718,1716474900044,528.04,0.00022347,3]
[327778719,1716474900238,512.27634411,0.0002226,3]
[327778720,1716474900290,500.0,0.00023171,3]
[327778721,1716474900371,528.04,0.00022621,4]
[327778722,1716474900674,528.04,0.00022895,5]
[327778723,1716474900832,500.0,0.00023445,4]
[327778724,1716474900983,528.04,0.00023169,6]
[327778725,1716474901229,528.04,0.00023443,7]
[327778726,1716474901531,500.0,0.00022074,2]
[327778727,1716474901609,500.0,0.00022073,2]
[327778728,1716474901733,9534.14,0.00022073,2]
[327778729,1716474901859,500.0,0.00022348,3]
[327778730,1716474901908,540.26909888,0.00022347,3]
[327778731,1716474902056,9534.14,0.00022347,3]
[327778732,1716474902140,500.0,0.00022622,4]
[327778733,1716474902441,9534.14,0.00022621,4]
[327778734,1716474902697,9534.14,0.00022895,5]
[327778735,1716474902769,500.0,0.00022896,5]
[327778736,1716474902826,419.39613646,0.00021917,2]
[327778737,1716474902983,9534.14,0.00023169,6]
[327778738,1716474903041,500.0,0.00022897,2]
[327778739,1716474903271,9534.14,0.00023443,7]
[327778740,1716474903320,500.0,0.00023171,3]
[327778741,1716474903373,500.0,0.00021986,2]
[327778742,1716474903426,500.0,0.0002317,6]
[327778743,1716474903825,500.0,0.00023445,4]
[327778744,1716474903875,500.0,0.0002226,3]
[327778745,1716474903935,500.0,0.00023444,7]
[327778746,1716474904262,500.0,0.00021986,2]
[327778747,1716474904559,500.0,0.00022534,4]
[327778748,1716474904628,500.0,0.0002226,3]
[327778749,1716474904796,500.0,0.00022808,5]
[327778750,1716474905128,500.0,0.00022534,4]
[327778751,1716474905396,500.0,0.00022808,5]
[327778752,1716474905448,308.79677732,0.00023082,6]
[327778753,1716474905720,500.0,0.00023082,6]
[327778755,1716474906358,400.9509581,0.00023356,7]
[327778757,1716474906714,2000.0,0.00023445,2]
[327778759,1716474907986,512.8,0.00021999,2]
[327778760,1716474908445,512.8,0.00022273,3]
[327778761,1716474908719,512.8,0.00022547,4]
[327778762,1716474908863,500.0,0.00022073,2]
[327778763,1716474909060,500.0,0.00021986,2]
[327778764,1716474909155,506.00711167,0.00022347,3]
[327778765,1716474909352,500.0,0.0002226,3]
[327778766,1716474909405,512.8,0.00022821,5]
[327778767,1716474909623,512.59692074,0.00022534,4]
[327778768,1716474909678,512.8,0.00023095,6]
[327778769,1716474910018,500.0,0.00021917,2]
[327778770,1716474910074,512.8,0.00023369,7]
[327778771,1716474910143,500.0,0.00022191,3]
[327778772,1716474910420,500.0,0.00022465,4]
[327778773,1716474910472,2005.18444528,0.000234,2]
[327778774,1716474910729,500.0,0.00022739,5]
[327778775,1716474911007,500.0,0.00023013,6]
[327778776,1716474911162,500.0,0.00022073,2]
[327778777,1716474911286,500.0,0.00023287,7]
[327778778,1716474911456,500.0,0.00022347,3]
[327778779,1716474911736,500.0,0.00022897,2]
[327778780,1716474912017,500.0,0.00021986,2]
[327778781,1716474912079,500.0,0.00023171,3]
[327778782,1716474912152,500.0,0.00022621,4]
[327778783,1716474912219,338.60637124,0.00021986,2]
[327778784,1716474912283,500.0,0.0002226,3]
[327778785,1716474912350,500.0,0.00023445,4]
[327778786,1716474912467,500.0,0.00022073,2]
[327778787,1716474912712,500.0,0.00022895,5]
[327778788,1716474912766,500.0,0.00022347,3]
[327778789,1716474912927,613.97338709,0.00022534,4]
[327778790,1716474913064,500.0,0.00022621,4]
[327778791,1716474913134,500.0,0.00023169,6]
[327778792,1716474913340,500.0,0.00022895,5]
[327778793,1716474913407,500.0,0.00023443,7]
[327778794,1716474913621,500.0,0.00023169,6]
[327778795,1716474914170,500.0,0.00022073,2]
[327778796,1716474914224,500.0,0.00023443,7]
[327778797,1716474914284,533.82850688,0.00022347,3]
[327778798,1716474914343,200.0,0.00023445,2]
[327778799,1716474915481,500.0,0.00021917,2]
[327778800,1716474915540,500.0,0.00022073,2]
[327778801,1716474915743,500.0,0.00022191,3]
[327778802,1716474915808,534.82495365,0.00022347,3]
[327778803,1716474915884,500.0,0.00021986,2]
[327778804,1716474916071,500.0,0.00022465,4]
[327778805,1716474916182,500.0,0.0002226,3]
[327778806,1716474916240,500.0,0.00022073,2]
[327778807,1716474916481,500.0,0.00022534,4]
[327778808,1716474916545,500.0,0.00022347,3]
[327778809,1716474916612,500.0,0.00022739,5]
[327778810,1716474916740,500.0,0.00022808,5]
[327778811,1716474916799,500.0,0.00022621,4]
[327778812,1716474916862,500.0,0.00023013,6]
[327778813,1716474917012,500.0,0.00023082,6]
[327778814,1716474917076,595.05125184,0.00022895,5]
[327778815,1716474917141,500.0,0.00023287,7]
[327778816,1716474917242,500.0,0.00022073,2]
[327778817,1716474917315,571.89953978,0.00023356,7]
[327778818,1716474917448,500.0,0.00022347,3]
[327778819,1716474917677,500.0,0.00022718,2]
[327778820,1716474917741,500.0,0.00021986,2]
[327778821,1716474917810,37885.0,0.00020889,2]
[327778822,1716474917871,500.0,0.00022621,4]
[327778823,1716474917990,500.0,0.0002226,3]
[327778824,1716474918087,500.0,0.00022895,5]
[327778825,1716474918249,500.0,0.00022534,4]
[327778826,1716474918424,500.0,0.00023169,6]
[327778827,1716474918526,500.0,0.00022808,5]
[327778828,1716474918759,500.0,0.00021986,2]
[327778829,1716474918812,500.0,0.00023082,6]
[327778830,1716474919036,500.0,0.00023443,7]
[327778831,1716474919086,500.0,0.00022073,2]
[327778832,1716474919217,586.4776149,0.00023356,7]
[327778833,1716474919380,517.78542349,0.00022347,3]
[327778834,1716474919621,500.0,0.0002226,3]
[327778835,1716474919670,500.0,0.00021986,2]
[327778836,1716474920333,500.0,0.00022073,2]
[327778837,1716474920385,500.0,0.0002226,3]
[327778838,1716474920444,500.0,0.00022534,4]
[327778839,1716474920516,500.0,0.00022347,3]
[327778840,1716474920568,500.0,0.00022534,4]
[327778841,1716474920628,500.0,0.00022621,4]
[327778842,1716474920678,261.98619775,0.00022808,5]
[327778843,1716474920734,521.0753941,0.00022808,5]
[327778844,1716474921041,500.0,0.00022895,5]
[327778845,1716474921255,733.88,0.00021986,2]
[327778846,1716474921304,155.0,0.00023,2]
[327778847,1716474921364,500.0,0.00023169,6]
[327778848,1716474921537,733.88,0.0002226,3]
[327778849,1716474921586,500.0,0.00023443,7]
[327778850,1716474921805,733.88,0.00022534,4]
[327778851,1716474921917,544.95,0.00022074,2]
[327778852,1716474922037,551.57826048,0.00022073,2]
[327778853,1716474922247,544.95,0.00022348,3]
[327778854,1716474922319,733.88,0.00022808,5]
[327778855,1716474922588,544.95,0.00022622,4]
[327778856,1716474922638,515.12045919,0.00022073,2]
[327778857,1716474922689,733.88,0.00023082,6]
[327778858,1716474922848,500.0,0.00021986,2]
[327778859,1716474922899,733.88,0.00023356,7]
[327778860,1716474922953,544.95,0.00022896,5]
[327778861,1716474923005,500.0,0.00022073,2]
[327778862,1716474923141,500.0,0.0002226,3]
[327778863,1716474923187,544.95,0.0002317,6]
[327778864,1716474923236,500.0,0.00022347,3]
[327778865,1716474923439,544.95,0.00023444,7]
[327778866,1716474923534,500.0,0.00022621,4]
[327778867,1716474923583,500.0,0.00022534,4]
[327778868,1716474923798,500.0,0.00022895,5]
[327778869,1716474924090,500.0,0.00023169,6]
[327778870,1716474924141,463.40977596,0.00022897,2]
[327778871,1716474924468,500.0,0.00022808,5]
[327778872,1716474924536,500.0,0.00023443,7]
[327778873,1716474924587,281.28881124,0.00023082,6]
[327778874,1716474925763,541.50346044,0.00022073,2]
[327778875,1716474925923,287.885,0.00020889,2]
[327778876,1716474926549,633.85,0.00021999,2]
[327778877,1716474926824,633.85,0.00022273,3]
[327778878,1716474927112,633.85,0.00022547,4]
[327778879,1716474927432,633.85,0.00022821,5]
[327778880,1716474927732,633.85,0.00023095,6]
[327778881,1716474928007,633.85,0.00023369,7]
[327778882,1716474928433,2005.18444528,0.000234,2]
[327778883,1716474928727,1260.94,0.00022897,2]
[327778884,1716474928796,500.0,0.00022073,2]
[327778885,1716474929060,500.0,0.00022073,2]
[327778886,1716474929178,500.0,0.00022347,3]
[327778887,1716474929229,1260.94,0.00023171,3]
[327778888,1716474929281,504.88352059,0.00022347,3]
[327778889,1716474929354,500.0,0.00022621,4]
[327778890,1716474929409,1260.94,0.00023445,4]
[327778891,1716474929525,500.0,0.00022897,2]
[327778892,1716474929609,2555.81,0.00022726,2]
[327778893,1716474929663,500.0,0.00022895,5]
[327778894,1716474929919,500.0,0.00023171,3]
[327778895,1716474929984,500.0,0.00023169,6]
[327778896,1716474930186,500.0,0.00023445,4]
[327778897,1716474930608,500.0,0.00023443,7]
[327778898,1716474930692,500.0,0.00022743,2]
[327778899,1716474931513,674.6,0.00022499,2]
[327778900,1716474931997,674.6,0.00022773,3]
[327778901,1716474932259,674.6,0.00023047,4]
[327778902,1716474932384,859.38,0.00022897,2]
[327778903,1716474932574,674.6,0.00023321,5]
[327778904,1716474932700,859.38,0.00023171,3]
[327778905,1716474933019,500.0,0.00022073,2]
[327778906,1716474933078,859.38,0.00023445,4]
[327778907,1716474933368,500.0,0.00022347,3]
[327778908,1716474933684,500.0,0.00022621,4]
[327778909,1716474934025,500.0,0.00022073,2]
[327778910,1716474934222,500.0,0.00022895,5]
[327778911,1716474934459,500.0,0.00022347,3]
[327778912,1716474934791,500.0,0.00023169,6]
[327778913,1716474934878,500.0,0.00022621,4]
[327778914,1716474935089,500.0,0.00022895,5]
[327778915,1716474935136,500.0,0.00023443,7]
[327778916,1716474935717,500.0,0.00023169,6]
[327778917,1716474935865,151.0,0.00020373,3]
[327778918,1716474935964,151.0,0.00020703,3]
[327778919,1716474936055,500.0,0.00023443,7]
[327778920,1716474936794,500.0,0.00022073,2]
[327778921,1716474937073,503.19613691,0.00022347,3]
[327778922,1716474937259,500.0,0.00022073,2]
[327778923,1716474937460,500.0,0.00021986,2]
[327778924,1716474937540,500.0,0.00022347,3]
[327778925,1716474937731,500.0,0.0002226,3]
[327778926,1716474937814,500.0,0.00022621,4]
[327778927,1716474937997,545.69085882,0.00022534,4]
[327778928,1716474938094,500.0,0.00022895,5]
[327778929,1716474938359,500.0,0.00023169,6]
[327778930,1716474938594,500.0,0.00022073,2]
[327778931,1716474938651,500.0,0.00023443,7]
[327778932,1716474938864,500.0,0.00022347,3]
[327778933,1716474939063,632.90063497,0.00022073,2]
[327778934,1716474939131,467.35442741,0.00022621,4]
[327778935,1716474939254,500.0,0.00022897,2]
[327778936,1716474939669,500.0,0.00021986,2]
[327778937,1716474939850,500.0,0.00023171,3]
[327778938,1716474939951,565.64773276,0.0002226,3]
[327778939,1716474940180,500.0,0.00023445,4]
[327778940,1716474940525,400.0,0.00022693,2]
[327778941,1716474940884,1252.55,0.00022897,2]
[327778942,1716474941088,5025.1,0.00021999,2]
[327778943,1716474941138,1252.55,0.00023171,3]
[327778944,1716474941394,5025.1,0.00022273,3]
[327778945,1716474941703,5025.1,0.00022547,4]
[327778946,1716474941761,1252.55,0.00023445,4]
[327778947,1716474942850,5025.1,0.00022821,5]
[327778948,1716474942923,200.66,0.00022073,2]
[327778949,1716474943454,500.0,0.00021986,2]
[327778950,1716474943505,500.0,0.00021986,2]
[327778951,1716474943581,500.0,0.0002226,3]
[327778952,1716474943629,200.66,0.00022347,3]
[327778953,1716474943681,500.0,0.0002226,3]
[327778954,1716474943744,5025.1,0.00023095,6]
[327778955,1716474943907,200.66,0.00022621,4]
[327778956,1716474943960,500.0,0.00022534,4]
[327778957,1716474944016,500.0,0.00022534,4]
[327778958,1716474944071,5025.1,0.00023369,7]
[327778959,1716474944130,200.66,0.00022895,5]
[327778960,1716474944183,500.0,0.00022808,5]
[327778961,1716474944244,500.0,0.00022808,5]
[327778962,1716474944302,500.0,0.00022073,2]
[327778963,1716474944358,200.66,0.00023169,6]
[327778964,1716474944412,611.65,0.00022074,2]
[327778965,1716474944472,500.0,0.00023082,6]
[327778966,1716474944527,500.0,0.00023082,6]
[327778967,1716474944614,200.66,0.00023443,7]
[327778968,1716474944669,611.65,0.00022348,3]
[327778969,1716474944728,500.0,0.00023356,7]
[327778970,1716474945148,500.0,0.00023356,7]
[327778971,1716474945213,500.0,0.00022347,3]
[327778972,1716474945263,611.65,0.00022622,4]
[327778973,1716474945353,500.0,0.00022621,4]
[327778974,1716474945424,611.65,0.00022896,5]
[327778975,1716474945511,611.65,0.0002317,6]
[327778976,1716474945776,416.58731863,0.00022895,5]
[327778977,1716474945831,611.65,0.00023444,7]
[327778978,1716474946078,500.0,0.00022073,2]
[327778979,1716474946377,317.77724832,0.00022347,3]
[327778980,1716474946431,542.43859095,0.000234,2]
[327778981,1716474947793,503.32604774,0.00022897,2]
[327778982,1716474948045,500.0,0.00022073,2]
[327778983,1716474948097,500.0,0.00022073,2]
[327778984,1716474948316,500.0,0.00022347,3]
[327778985,1716474948380,516.39811807,0.00022347,3]
[327778986,1716474948608,601.85905779,0.00022621,4]
[327778987,1716474949045,500.0,0.00021986,2]
[327778988,1716474949665,500.0,0.0002226,3]
[327778989,1716474949948,444.58991477,0.00022534,4]
[327778990,1716474951029,10000.0,0.00022795,2]
[327778991,1716474952602,500.0,0.00021986,2]
[327778992,1716474952824,588.32,0.00022897,2]
[327778993,1716474952959,500.0,0.00022073,2]
[327778994,1716474953098,588.32,0.00023171,3]
[327778995,1716474953218,635.02,0.00021986,2]
[327778996,1716474953280,500.0,0.00022347,3]
[327778997,1716474953328,500.0,0.0002226,3]
[327778998,1716474953484,635.02,0.0002226,3]
[327778999,1716474953570,500.0,0.00022621,4]
[327779000,1716474953622,500.0,0.00022534,4]
[327779001,1716474953671,588.32,0.00023445,4]
[327779002,1716474953793,635.02,0.00022534,4]
[327779003,1716474953869,500.0,0.00022895,5]
[327779004,1716474954084,500.0,0.00022897,2]
[327779005,1716474954161,500.0,0.00023169,6]
[327779006,1716474954223,518.40877478,0.00022808,5]
[327779007,1716474954385,500.0,0.00023171,3]
[327779008,1716474954514,635.02,0.00022808,5]
[327779009,1716474954798,500.0,0.00023443,7]
[327779010,1716474954860,635.02,0.00023082,6]
[327779011,1716474954995,500.0,0.00023445,4]
[327779012,1716474955138,635.02,0.00023356,7]
[327779013,1716474955885,1955.73,0.00022074,2]
[327779014,1716474955958,1955.73,0.00022348,3]
[327779015,1716474956086,1955.73,0.00022622,4]
[327779016,1716474956492,500.0,0.00021986,2]
[327779017,1716474956646,500.0,0.00022073,2]
[327779018,1716474956701,1955.73,0.00022896,5]
[327779019,1716474956942,500.0,0.00022347,3]
[327779020,1716474957221,500.0,0.0002226,3]
[327779021,1716474957276,500.0,0.00022621,4]
[327779022,1716474957484,500.0,0.00022534,4]
[327779023,1716474957546,500.0,0.00022895,5]
[327779024,1716474957689,1955.73,0.0002317,6]
[327779025,1716474957747,548.9,0.00022499,2]
[327779026,1716474957799,312.50350108,0.00022808,5]
[327779027,1716474957868,500.0,0.00023169,6]
[327779028,1716474957972,1955.73,0.00023444,7]
[327779029,1716474958026,548.9,0.00022773,3]
[327779030,1716474958129,500.0,0.00023443,7]
[327779031,1716474958640,548.9,0.00023047,4]
[327779032,1716474958917,548.9,0.00023321,5]
[327779033,1716474960583,500.0,0.00021986,2]
[327779034,1716474960691,500.0,0.00021986,2]
[327779035,1716474960746,2074.2,0.00022073,2]
[327779036,1716474960884,604.97425699,0.0002226,3]
[327779037,1716474960995,500.0,0.0002226,3]
[327779038,1716474961275,500.0,0.00022534,4]
[327779039,1716474961487,2074.2,0.00022347,3]
[327779040,1716474961542,500.0,0.00022808,5]
[327779041,1716474961880,161.35580052,0.00023082,6]
[327779042,1716474962137,2074.2,0.00022621,4]
[327779043,1716474962223,500.0,0.00022073,2]
[327779044,1716474962390,500.0,0.00022073,2]
[327779045,1716474962445,2074.2,0.00022895,5]
[327779046,1716474962513,500.0,0.00022347,3]
[327779047,1716474962718,500.0,0.00022347,3]
[327779048,1716474962768,2074.2,0.00023169,6]
[327779049,1716474962904,300.33392777,0.00022621,4]
[327779050,1716474963011,2074.2,0.00023443,7]
[327779051,1716474963236,500.0,0.00022621,4]
[327779052,1716474963576,500.0,0.00022895,5]
[327779053,1716474963808,500.0,0.00023169,6]
[327779054,1716474963864,500.0,0.00022073,2]
[327779055,1716474964078,500.0,0.00022347,3]
[327779056,1716474964132,500.0,0.00023443,7]
[327779057,1716474964367,318.12871841,0.00022621,4]
[327779058,1716474964817,500.0,0.00021986,2]
[327779059,1716474965076,500.0,0.0002226,3]
[327779060,1716474965353,500.0,0.00022534,4]
[327779061,1716474965410,2438.42,0.00021986,2]
[327779062,1716474965638,500.0,0.00022808,5]
[327779063,1716474965714,2438.42,0.0002226,3]
[327779064,1716474966162,500.0,0.00023082,6]
[327779065,1716474966231,2438.42,0.00022534,4]
[327779066,1716474966318,500.0,0.00023356,7]
[327779067,1716474966379,2438.42,0.00022808,5]
[327779068,1716474966594,2438.42,0.00023082,6]
[327779069,1716474966879,2438.42,0.00023356,7]
[327779070,1716474967092,564.25,0.00022074,2]
[327779071,1716474967400,564.25,0.00022348,3]
[327779072,1716474967493,500.0,0.00022073,2]
[327779073,1716474967707,564.25,0.00022622,4]
[327779074,1716474967972,564.25,0.00022896,5]
[327779075,1716474968104,500.0,0.00022347,3]
[327779076,1716474968251,564.25,0.0002317,6]
[327779077,1716474968313,500.0,0.00022073,2]
[327779078,1716474968395,500.0,0.00022621,4]
[327779079,1716474968457,500.0,0.00022897,2]
[327779080,1716474968540,564.25,0.00023444,7]
[327779081,1716474968599,500.0,0.00022347,3]
[327779082,1716474968673,500.0,0.00022895,5]
[327779083,1716474968757,500.0,0.00023171,3]
[327779084,1716474968830,500.0,0.00022621,4]
[327779085,1716474968997,500.0,0.00023169,6]
[327779086,1716474969050,500.0,0.00023445,4]
[327779087,1716474969179,500.0,0.00022895,5]